Cogmind - Beta 14 @@@ ROGUE MODE // 2024.08.15 @ 20:41:12 Player: Zeia Result: Destroyed by 27-DZG(R) with Subdweller Machine Gun Performance ------------- Evolutions (0) 0 Regions Visited (2) 400 Robots Destroyed (14) 70 Value Destroyed (271) 271 Prototype IDs (0) 0 Alien Tech Used (0) 0 Bonus (0) 0 TOTAL SCORE: 741 Bonus ------- None Cogmind --------- Core Integrity 0/250 Matter 256/300 Energy 100/100 System Corruption 0% Temperature Cool (0) Movement Core (150) Ox2 Location -10/Subcaves Parts ------- > --- POWER (1) -------- (None) > --- PROPULSION (2) --- (None) > --- UTILITY (2) ------ Small Storage Unit > --- WEAPON (2) ------- Barrage Gun > --- INVENTORY (8) ---- Subdweller Power Source Wheel High-capacity Storage Unit High-capacity Matter Pod (101) Makeshift Light Armor Plating Scrap Shield Peak State ------------ > --- POWER ------------ Ion Engine > --- PROPULSION ------- Light Treads Light Treads > --- UTILITY ---------- Small Storage Unit Seismic Detector > --- WEAPON ----------- Assault Rifle Barrage Gun > --- INVENTORY -------- Subdweller Power Source Wheel High-capacity Storage Unit High-capacity Matter Pod Makeshift Light Armor Plating Scrap Shield Subdweller Laser [Rating: 10] Favorites ----------- Power Ion Engine Engine Ion Engine Propulsion Light Treads Treads Light Treads Utility Small Storage Unit Device Seismic Detector Storage Small Storage Unit Weapon Assault Rifle Ballistic Gun Assault Rifle Launcher Grenade Launcher Build | -11 -10 -10 ------- Run | Yrd Mat Sub Slots Evolved . | . . . Power . | . . . Propulsion . | . . . Utility . | . . . Weapon . | . . . Parts Attached 13 | 7 2 4 Power 1 | 1 . . Engine 1 | 1 . . Core . | . . . Reactor . | . . . Propulsion 2 | 2 . . Treads 2 | 2 . . Leg . | . . . Wheel . | . . . Hover . | . . . Flight . | . . . Utility 2 | 2 . . Device 1 | 1 . . Storage 1 | 1 . . Processor . | . . . Hackware . | . . . Protection . | . . . Artifact . | . . . Weapon 8 | 2 2 4 Energy Gun . | . . . Energy Cannon . | . . . Ballistic Gun 6 | 2 1 3 Ballistic Cannon . | . . . Launcher 2 | . 1 1 Special Weapon . | . . . Impact Weapon . | . . . Slashing Weapon . | . . . Piercing Weapon . | . . . Special Melee Weapon . | . . . Unidentified Prototypes . | . . . Parts Lost 7 | . . 7 Power 1 | . . 1 Propulsion 2 | . . 2 Utility 1 | . . 1 Weapon 3 | . . 3 Highest Loss Streak 6 | . . 6 To Critical Strikes . | . . . Average Slot Usage (%) 99 | . 100 98 Engine 13 | . 14 13 Treads 27 | . 28 27 Device 13 | . 14 13 Storage 14 | . 14 14 Ballistic Gun 27 | . 27 27 Peak Build Rating 10 | 7 7 10 Average Rating 7 | 5 7 7 On Entrance 4 | . 7 7 Naked Turns . | . . . Heaviest Build 16 | 15 15 16 Greatest Support 40 | 40 40 40 Greatest Overweight (x) . | . . . Average Overweight (x) . | . . . Largest Inventory Capacity 8 | 8 8 8 Average Capacity 7 | 7 8 8 Most Carried 8 | 6 8 8 Average Carried 7 | 4 7 7 Final Capacity 8 | 8 8 8 Final Carried 8 | 6 8 7 Class Distribution -------------------- 100% | Mutant Dominant Class ---------------- Mutant | -10/Materials Mutant | -10/Subcaves Resources | -11 -10 -10 ----------- Run | Yrd Mat Sub Matter Collected 622 | 354 26 242 Remotely . | . . . Salvage Created 456 | 213 26 217 Parts 38 | 17 2 19 Haulers Intercepted . | . . . Recyclers Shooed . | . . . Parts Field Recycled . | . . . Retrieved Matter . | . . . Parts Self-Destructed 3 | . . 3 Prevented . | . . . Kills | -11 -10 -10 ------- Run | Yrd Mat Sub Combat Hostiles Destroyed 8 | . 3 5 Guns 5 | . 1 4 AOE 3 | . 2 1 Classes Destroyed 4 | 2 1 1 Tunneler 5 | 5 . . Recycler 1 | 1 . . Swarmer 3 | . 3 . Subdweller 5 | . . 5 Best Kill Streak 3 | 3 3 2 Combat Bots Only 3 | . 3 2 Max Kills in Single Turn 2 | 1 2 1 Gunslinging . | . . . Exploded 2 | . 2 1 Melee . | . . . Uniques/NPCs Destroyed . | . . . Combat | -11 -10 -10 -------- Run | Yrd Mat Sub Hostile Shots Fired 58 | . 7 51 Missed 9 | . 3 6 Damage Taken 1023 | . 35 988 Core 256 | . . 256 Absorbed by Shields . | . . . Core Remaining (%) 100 | 100 . . Volleys Fired 48 | 14 4 30 Largest 2 | 2 1 2 Hottest 48 | 40 30 48 Shots Fired 80 | 28 4 48 Gun 77 | 28 2 47 Cannon . | . . . Launcher 3 | . 2 1 Special . | . . . Kinetic 77 | 28 2 47 Thermal . | . . . Explosive 3 | . 2 1 Electromagnetic . | . . . Robot Hit Streak 21 | 5 6 21 Robot Miss Streak 3 | 3 2 1 Penetration Max . | . . . Secondary Targets 1 | . . 1 Max Gunslinging Chain 1 | . . 1 Shots Hit Robots 62 | 16 2 44 Core Hits 23 | 7 3 13 Critical Kills . | . . . Critical Parts Destroyed 1 | 1 . . Critical Strikes 1 | 1 . . Destroy 1 | 1 . . Melee Attacks . | . . . Impact . | . . . Slashing . | . . . Piercing . | . . . Sneak Attacks . | . . . Combat Hostiles . | . . . Follow-up Attacks . | . . . Damage Inflicted 1039 | 211 162 666 Guns 789 | 211 13 565 Cannons . | . . . Explosions 250 | . 149 101 Melee . | . . . Ramming . | . . . Kinetic 789 | 211 13 565 Thermal . | . . . Explosive 250 | . 149 101 Electromagnetic . | . . . Impact . | . . . Slashing . | . . . Piercing . | . . . Highest Corruption . | . . . Average Corruption . | . . . Corruption Purged . | . . . Corruption Blocked . | . . . Overload Shots . | . . . Overflow Damage 3 | . 3 . Projectiles . | . . . Explosions 3 | . 3 . Melee . | . . . Knockbacks . | . . . Impact . | . . . Kinetic . | . . . Secondary . | . . . Self-Inflicted Damage 23 | . . 23 Shots 1 | . . 1 Rammed . | . . . Targets Rammed . | . . . Kicked . | . . . Crushed . | . . . Highest Temperature . | . . . Average Temperature . | . . . Received Heat Transfer 120 | . . 120 Siege Activations . | . . . Robots Corrupted . | . . . Combat Hostiles . | . . . Parts Fried . | . . . Impact Corruptions . | . . . Robots Melted . | . . . Combat Hostiles . | . . . Parts Melted . | . . . Heat Transferred . | . . . Parts Sabotaged . | . . . Parts Stolen . | . . . Parts Stripped . | . . . Power Chain Reactions . | . . . Alert | -11 -10 -10 ------- Run | Yrd Mat Sub Peak Influence 110 | 30 110 . Initial 19 | . 19 . Average 38 | 13 49 . Maximum Alert Level . | . . . Low Security (%) 100 | 100 100 . Level 1 . | . . . Level 2 . | . . . Level 3 . | . . . Level 4 . | . . . Level 5 . | . . . High Security . | . . . Max Security . | . . . Squads Dispatched . | . . . Investigation . | . . . Extermination . | . . . Reinforcement . | . . . Assault . | . . . Garrison . | . . . Intercept . | . . . Searches Triggered . | . . . Construction Impeded . | . . . Haulers Reinforced . | . . . Active Scanning Responses . | . . . Cargo Convoy Interrupts . | . . . Stealth | -11 -10 -10 --------- Run | Yrd Mat Sub Distress Signals 1 | . 1 . Communications Jammed . | . . . Distress Signals . | . . . Times Spotted 12 | . 5 7 Peak Tracking Total 4 | . 4 2 Tactical Retreats . | . . . Traps | -11 -10 -10 ------- Run | Yrd Mat Sub Traps Triggered . | . . . Indirectly . | . . . Trap Hack Attempts . | . . . Triggered . | . . . Disarmed . | . . . Reprogrammed . | . . . Reused . | . . . Traps Extracted . | . . . Installed . | . . . Triggered . | . . . Machines | -11 -10 -10 ---------- Run | Yrd Mat Sub Machines Disabled . | . . . Max in Single Turn . | . . . Machines Repaired . | . . . Machines Dismantled . | . . . Machines Sabotaged . | . . . Overloaded Fab Kills . | . . . Hacking | -11 -10 -10 --------- Run | Yrd Mat Sub Machines Accessed 3 | . 2 1 Terminals 2 | . 2 . Fabricators . | . . . Repair Stations . | . . . Recycling Units . | . . . Scanalyzers . | . . . Garrison Access . | . . . Total Hacks 6 | . 3 3 Successful 5 | . 2 3 Failed 1 | . 1 . Catastrophic . | . . . Database Lockouts . | . . . Manual 2 | . 2 . Terminals 3 | . 3 . Fabricators . | . . . Repair Stations . | . . . Recycling Units . | . . . Scanalyzers . | . . . Garrison Access . | . . . Terminal Hacks 4 | . 1 3 Record 3 | . . 3 Zone Layout 1 | . 1 . Fabricator Hacks . | . . . Repair Station Hacks . | . . . Recycling Unit Hacks . | . . . Scanalyzer . | . . . Garrison Access Hacks . | . . . Unauthorized Hacks 1 | . 1 . Terminals 1 | . 1 . Assimilate 1 | . 1 . Fabricators . | . . . Repair Stations . | . . . Recycling Units . | . . . Scanalyzers . | . . . Garrison Access . | . . . Data Cores Recovered . | . . . Used . | . . . Hacking Detections 1 | . 1 . Full Trace Events . | . . . Feedback Events . | . . . Feedback Blocked . | . . . Robot Schematics Acquired . | . . . Robots Built . | . . . Authchips . | . . . Time . | . . . Total Robot Build Rating . | . . . Part Schematics Acquired . | . . . Parts Built . | . . . Authchips . | . . . Time . | . . . Total Part Build Rating . | . . . Parts Repaired . | . . . Time . | . . . Parts Recycled . | . . . Recycled Matter . | . . . Retrieved Matter . | . . . Retrieved Components . | . . . Parts Scanalyzed . | . . . Part Schematics Acquired . | . . . Parts Damaged . | . . . Bothacking | -11 -10 -10 ------------ Run | Yrd Mat Sub Used RIF Installer . | . . . Robots Hacked . | . . . Non-combat . | . . . Combat . | . . . Robot Hacks Applied . | . . . Relay Couplers Released . | . . . Fabnet Peak Effective % . | . . . Robots Rewired . | . . . Allies Hacked . | . . . Hacks Repelled . | . . . Allies | -11 -10 -10 -------- Run | Yrd Mat Sub Total Allies 1 | . 1 . Largest Group 1 | . 1 1 Highest-Rated Group 10 | . 10 10 Highest-Rated Ally 10 | . 10 10 Total Orders . | . . . Ally Attacks . | . . . Total Damage . | . . . Kills . | . . . Allies Corrupted . | . . . Allies Melted . | . . . Intel | -11 -10 -10 ------- Run | Yrd Mat Sub Robot Analysis Total . | . . . Derelict Logs Recovered 2 | . . 2 Drone Launches . | . . . Drone Recoveries . | . . . Exploration | -11 -10 -10 ------------- Run | Yrd Mat Sub Turns Passed 1521 | 221 505 795 Spaces Moved 792 | 106 248 438 Core 6 | 6 . . Treads 786 | 100 248 438 Legs . | . . . Wheels . | . . . Hover . | . . . Flight . | . . . Fastest Speed 50 | 50 160 160 Average Speed 159 | 153 160 160 Slowest Speed 160 | 160 160 160 Overloaded Moves . | . . . Propulsion Burnouts . | . . . Robots Hopped . | . . . Cave-ins Triggered . | . . . Exploration Rate (%) 27 | 5 36 42 Regions Visited 2 Branch Regions 1 Pre-discovered Areas . | . . . Known Exits Taken . | . . . Unknown Exits Taken 2 | 1 1 . Scrap Searched . | . . . Spaces Dug . | . . . Terrain Destroyed 22 | . 17 5 Melee . | . . . Projectile . | . . . AOE 22 | . 17 5 Terrain Rammed . | . . . Walls Destroyed . | . . . Machines Disabled . | . . . Actions | -11 -10 -10 --------- Run | Yrd Mat Sub Total 976 | 133 353 490 Wait 99 | . 92 7 Move 790 | 105 247 438 Hop . | . . . Pick Up 17 | 7 5 5 Fast Attach 6 | 6 . . Attach 3 | 1 . 2 Detach . | . . . Swap 4 | . 2 2 Drop 9 | . 3 6 Fire 48 | 14 4 30 Melee . | . . . Ram . | . . . Kick . | . . . Crush . | . . . Escape Stasis . | . . . Rewire . | . . . Trap . | . . . Miscellaneous . | . . . Route ------- -11/Scrapyard -10/Materials (discovered 2 exits: [*Min] / *Sub) -10/Subcaves (discovered 1 exit: [*Mat]) History --------- Turn | Location | Event 14 | -11/Scrapyard | Discovered new exit (range 15) 222 | -11/Scrapyard | Entered Materials 313 | -10/Materials | Build established: Mutant 388 | -10/Materials | Discovered new exit (range 16) 700 | -10/Materials | Discovered new exit (range 5) 727 | -10/Materials | Entered Subcaves 727 | -10/Subcaves | Accompanied by 1 ally 800 | -10/Subcaves | A swath of the cavern ceiling suddenly collapsed 852 | -10/Subcaves | A swath of the cavern ceiling suddenly collapsed 863 | -10/Subcaves | Learned location of 1 exit from Materials 893 | -10/Subcaves | Shifting Twisted Machinery released Scrap Shield 955 | -10/Subcaves | Shifting Twisted Machinery released Flamer 989 | -10/Subcaves | Shifting Twisted Machinery released Mak. Light Armor Plating 999 | -10/Subcaves | Shifting Twisted Machinery released Spk. Treads 1030 | -10/Subcaves | Learned Materials terminal intel 1048 | -10/Subcaves | Discovered new exit (range 13) 1426 | -10/Subcaves | Visited Clippyterm 1431 | -10/Subcaves | Learned Research machine intel 1452 | -10/Subcaves | Shifting Twisted Machinery released Barrage Gun 1457 | -10/Subcaves | Shifting Twisted Machinery released Sub. Power Source 1503 | -10/Subcaves | Core integrity fell below 50% 1515 | -10/Subcaves | Core integrity fell below 20% 1522 | -10/Subcaves | Destroyed by 27-DZG(R) with Subdweller Machine Gun Last Messages --------------- >>Record! "Procgen" It looks like you're analyzing machine distribution algorithms, I have access to useful relevant data. Data stored: Research machine intel. >>Record! "LU-1G1" It looks like you're researching the legendary digger of dangerously deep tunnels, unfortunately it seems not even members of the Boring Crew know what became of that one. Barrage Gun falls loose from the Twisted Machinery. Sub. Power Source falls loose from the Twisted Machinery. 01464_ Dropped Assault Rifle. 01470_ Dropped Sub. Laser. 01475_ Acquired Assault Rifle. 01500_ Lgt. Treads destroyed. 01506_ Ion Engine destroyed. 01508_ Assault Rifle destroyed. 01510_ Seismic Detector destroyed. 01516_ Assault Rifle destroyed. 01518_ Lgt. Treads destroyed. 01521_ Destroyed Scrap Shield. Map ----- +----------------------------------------------------+ | ?????????????????????????????????????????????? | | ?????????????????????????????????????????????? | | ?????????????????????????????????????????????? | | ?????????????????????????????????????????????? | | ?????????????????????????????????????????????? | | ?????????????????????????????????????????????? | | ?????????????????????????????????????????????? | | ?????????????????????????????????????????????? | | ?????????????????????????????????????????????? | | ?????????????????????????????????????????????? | | ?????????????????????????????????????????????? | | ?????????????????????????????????????????????? | | ?????????????????????????????????????????????? | | ???????????????????????? ???????????????????? | | ???????????????????????? #???????????????????? | | ??????????????????????## #???????????????????? | | ??????????????????? ?? ###?????????????????? | | ??????????????????? ?? #?????????????????? | | ???????????????????? ?# ????###???????????? | | ???????????????????? ## ##??? #???????????? | | ????????????????????# ##? ##???????????? | | ????????????????????? ## #???????????? | | ?????????????????????# #???????????? | | ???????????????####??# #????????????? | | ??????????????## ### R #?????????????? | | ??????????????# @R #?????????????? | | ??????????????# #?????????????? | | ??????????????## #####???????????? | | ???????????????## ##### ##??????????? | | ????????????????## #### " ##?????????? | | ?????????????????# ### "*" ##????????? | | ?????????????????## #?## " " #????????? | | ??????????????????## #??## [ " " #????????? | | ???????????????????# ???## " ##????????? | | ???????????????????# ????## ###?????????? | | ??????????????????? #????## ##???????????? | | ??????????????????? ##???## ##????????????? | | ??????????????????###?????# ##????????????? | | ?????????????????????????## #????????????? | | ???????????????????????### ###????????????? | | ?????????????????????### ##??????????????? | | ??????????????????#### #???????????????? | | ??????????######### # #???????????????? | | ??????????#"""## #### ##???????????????? | | ??????????#"" ## #??# ???????????????? | | ??????????#"X ## #? ?????????????? | | ??????????#"" ## ## ##? "????????????? | | ??????????#"""### # #???????????? | | ??????????##### #???????????? | | ??????????????## ## # #???????????? | +----------------------------------------------------+ Best States ------------- Heat Dissipation 25 Energy Generation 10 Energy Capacity 250 Matter Stores 300 Matter Capacity 300 Sight Range 16 Terrain Scan Density 10 Evasion (%) 40 Recoil Reduction 2 Item Schematics ----------------- None Robot Schematics ------------------ None Fabricated ------------ Nothing Alien Tech Used ----------------- None Achievements -------------- None Challenges ------------ None Game ------ Seed FieldLinkedSlayer Manual? 0 Play Time 00:13:14 Cumulative 40.2 hours Start 2024.08.15 @ 20:32:04 End 2024.08.15 @ 20:41:12 Sessions 1 Manual Loads 0 Difficulty Rogue Special Mode None Game No. 37 Rogue 37 Adventurer 0 Explorer 0 Win Type - Total 0 Types 0/0/0/0/0/0/0/0/0 Lore% 35 Gallery% 34 Achievement% 28 Wizard Run 0 Options --------- Layout 1 ASCII 0 Keyboard 1 Movement Vi Keybinds 0 Fullscreen 0 Font 20/SmallcapsGlow Map View 64x42 Zoom Use 0% Tactical HUD 1 Map Filters NONE Filters NONE Steam 1 RUN: 450ce30a-9d95-4322-afe0-cf76305aa999